Workbook

Sheet NTP02 Heater Sheet
C1: Gas Line Heater(NTP02)
S2: Doc No.: | T2: 200-0020-000
A3: Design: | B3: CH | F3: Design Change Description | T3: Version: | U3: E03
A4: Time: | B4: 20250311 | O4: Date: | P4: Sig: | Q4: Appd:
A5: INI8 NO. | B5: SW NO. | C5: CH | D5: Act | E5: HEAT NO. | F5: TC NO. | G5: Memory1 | J5: Memory2 | N5: PN | O5: Description | P5: QTY | Q5: CONNECTION | R5: VOLTAGE | S5: POWER MAX | T5: Current | U5: FUSE
G6: SET | H6: LO-TMP | I6: HI-TMP | J6: SV | K6: LO-TMP | L6: HI-TMP | M6: CLN.T | R6: V | S6: W | T6: A | U6: A
A7: MINI8-1 | B7: HTR1 | C7: U1-CH1 | D7: DCS GAS IN | E7: H101 | F7: TC101 | G7: 40℃ | H7: 30℃ | I7: 60℃ | J7: 40℃ | K7: 30℃ | L7: 60℃ | M7: 60℃ | N7: 539-2051-000 | O7: 20×500mm | P7: 1 | R7: 220 | S7: =0.5*150 -> 75 | T7: =S7/R7 -> 0.3409090909 | U7: 0.5
C8: U1-CH2 | D8: IGS 1 | E8: H102 | F8: TC102 | G8: 40℃ | H8: 30℃ | I8: 60℃ | J8: 40℃ | K8: 30℃ | L8: 60℃ | M8: 60℃ | N8: tube1-10 | O8: 20×400mm | P8: 1 | R8: 220 | S8: =0.4*150 -> 60 | T8: =S8/R8 -> 0.2727272727 | U8: 0.5
C9: U1-CH3 | D9: IGS 2 | E9: H103 | F9: TC103 | G9: 40℃ | H9: 30℃ | I9: 60℃ | J9: 40℃ | K9: 30℃ | L9: 60℃ | M9: 60℃ | N9: tube1-5 | O9: 20×500mm | P9: 1 | R9: 220 | S9: 75 | T9: =S9/R9 -> 0.3409090909 | U9: 0.5
C10: U1-CH4 | D10: IGS 3 | E10: H104 | F10: TC104 | G10: 40℃ | H10: 30℃ | I10: 60℃ | J10: 40℃ | K10: 30℃ | L10: 60℃ | M10: 60℃ | N10: tube1-6 | O10: 20×400mm | P10: 1 | R10: 220 | S10: =0.4*150 -> 60 | T10: =S10/R10 -> 0.2727272727 | U10: 0.5
C11: U1-CH5 | D11: IGS 4 | E11: H105 | F11: TC105 | G11: 40℃ | H11: 30℃ | I11: 60℃ | J11: 40℃ | K11: 30℃ | L11: 60℃ | M11: 60℃ | O11: SELF-HEATING | P11: 1 | R11: 220 | S11: 40 | T11: 0.182 | U11: 0.25
C12: U1-CH6 | D12: IGS 5 | E12: H106 | F12: TC106 | G12: 40℃ | H12: 30℃ | I12: 60℃ | J12: 40℃ | K12: 30℃ | L12: 60℃ | M12: 60℃ | O12: SELF-HEATING | P12: 1 | R12: 220 | S12: 30 | T12: 0.136 | U12: 0.25
C13: U1-CH7 | D13: REC-1-1 | E13: H107 | F13: TC107 | G13: 40℃ | H13: 30℃ | I13: 60℃ | J13: 40℃ | K13: 30℃ | L13: 60℃ | M13: 60℃ | N13: 539-2043-000 | O13: 20×750mm | P13: 1 | R13: 220 | S13: =0.75*150 -> 112.5 | T13: =S13/R13 -> 0.5113636364 | U13: 1
C14: U1-CH8 | D14: REC-4-1-1 | E14: H108 | F14: TC108 | G14: 40℃ | H14: 30℃ | I14: 60℃ | J14: 40℃ | K14: 30℃ | L14: 60℃ | M14: 60℃ | N14: 539-2042-000 | O14: 20×900mm | P14: 1 | R14: 220 | S14: =0.9*150 -> 135 | T14: =S14/R14 -> 0.6136363636 | U14: 1
C15: U1-CH9 | D15: REC-4-1-2 | E15: H109 | F15: TC109 | G15: 40℃ | H15: 30℃ | I15: 60℃ | J15: 40℃ | K15: 30℃ | L15: 60℃ | M15: 60℃ | N15: 539-2077-000 | O15: 20×2000mm | P15: 1 | R15: 220 | S15: =2*150 -> 300 | T15: =S15/R15 -> 1.363636364 | U15: 2
C16: U1-CH10 | D16: REC-1-2 | E16: H110 | F16: TC110 | G16: 120℃ | H16: 100℃ | I16: 140℃ | J16: 40℃ | K16: 30℃ | L16: 140℃ | M16: 120℃ | N16: 539-2066-000 | O16: 20×400mm | P16: 1 | R16: 220 | S16: =0.4*150 -> 60 | T16: =S16/R16 -> 0.2727272727 | U16: 0.5
C17: U1-CH11 | D17: REC-4-2 | E17: H111 | F17: TC111 | G17: 120℃ | H17: 100℃ | I17: 140℃ | J17: 40℃ | K17: 30℃ | L17: 140℃ | M17: 120℃ | N17: 539-2066-000 | O17: 20×400mm | P17: 1 | R17: 220 | S17: =0.4*150 -> 60 | T17: =S17/R17 -> 0.2727272727 | U17: 0.5
C18: U1-CH12 | D18: AV28 | E18: H112 | F18: TC112 | G18: 120℃ | H18: 100℃ | I18: 140℃ | J18: 40℃ | K18: 30℃ | L18: 140℃ | M18: 120℃ | O18: JK-HEATER | P18: 1 | R18: 220 | S18: =R18*T18 -> 61.6 | T18: 0.28 | U18: 0.5
C19: U1-CH13 | D19: AV29 | E19: H113 | F19: TC113 | G19: 120℃ | H19: 100℃ | I19: 140℃ | J19: 40℃ | K19: 30℃ | L19: 140℃ | M19: 120℃ | O19: JK-HEATER | P19: 1 | R19: 220 | S19: =R19*T19 -> 61.6 | T19: 0.28 | U19: 0.5
C20: U1-CH14
C21: U1-CH15
C22: U1-CH16
A23: MINI8-2 | B23: HTR1 | C23: U2-CH1 | D23: AV30 | E23: H201 | F23: TC201 | G23: 120℃ | H23: 100℃ | I23: 140℃ | J23: 40℃ | K23: 30℃ | L23: 140℃ | M23: 120℃ | O23: JK-HEATER | P23: 1 | R23: 220 | S23: =R23*T23 -> 61.6 | T23: 0.28 | U23: 0.5
C24: U2-CH2 | D24: AV31 | E24: H202 | F24: TC202 | G24: 120℃ | H24: 100℃ | I24: 140℃ | J24: 40℃ | K24: 30℃ | L24: 140℃ | M24: 120℃ | O24: JK-HEATER | P24: 1 | R24: 220 | S24: =R24*T24 -> 61.6 | T24: 0.28 | U24: 0.5
C25: U2-CH3 | D25: DCS-TANK1 | E25: H203 | F25: TC203 | G25: 120℃ | H25: 100℃ | I25: 140℃ | J25: 60℃ | K25: 40℃ | L25: 140℃ | M25: 120℃ | O25: JK-HEATER | P25: 1 | R25: 220 | S25: =R25*T25 -> 129.7969911 | T25: =R25/372.89 -> 0.589986323 | U25: 1
C26: U2-CH4 | D26: DCS-TANK2 | E26: H204 | F26: TC204 | G26: 120℃ | H26: 100℃ | I26: 140℃ | J26: 60℃ | K26: 40℃ | L26: 140℃ | M26: 120℃ | O26: JK-HEATER | P26: 1 | R26: 220 | S26: =R26*T26 -> 129.7969911 | T26: =R26/372.89 -> 0.589986323 | U26: 2
C27: U2-CH5 | D27: AV32-33 | E27: H205 | F27: TC205 | G27: 120℃ | H27: 100℃ | I27: 140℃ | J27: 60℃ | K27: 40℃ | L27: 140℃ | M27: 120℃ | O27: JK-HEATER | P27: 1 | R27: 220 | S27: =R27*T27 -> 50.6 | T27: 0.23 | U27: 0.25
C28: U2-CH6 | D28: AV34-35 | E28: H206 | F28: TC206 | G28: 120℃ | H28: 100℃ | I28: 140℃ | J28: 60℃ | K28: 40℃ | L28: 140℃ | M28: 120℃ | O28: JK-HEATER | P28: 1 | R28: 220 | S28: 50.6 | T28: 0.23 | U28: 0.25
C29: U2-CH7 | D29: AV36 | E29: H207 | F29: TC207 | G29: 120℃ | H29: 100℃ | I29: 140℃ | J29: 60℃ | K29: 40℃ | L29: 140℃ | M29: 120℃ | O29: JK-HEATER | P29: 1 | R29: 220 | S29: 61.6 | T29: 0.28 | U29: 0.5
C30: U2-CH8 | D30: AV37 | E30: H208 | F30: TC208 | G30: 120℃ | H30: 100℃ | I30: 140℃ | J30: 60℃ | K30: 40℃ | L30: 140℃ | M30: 120℃ | O30: JK-HEATER | P30: 1 | R30: 220 | S30: 61.6 | T30: 0.28 | U30: 0.5
C31: U2-CH9 | D31: AV38 | E31: H209 | F31: TC209 | G31: 120℃ | H31: 100℃ | I31: 140℃ | J31: 60℃ | K31: 40℃ | L31: 140℃ | M31: 120℃ | O31: JK-HEATER | P31: 1 | R31: 220 | S31: 61.6 | T31: 0.28 | U31: 0.5
C32: U2-CH10 | D32: AV39 | E32: H210 | F32: TC210 | G32: 120℃ | H32: 100℃ | I32: 140℃ | J32: 60℃ | K32: 40℃ | L32: 140℃ | M32: 120℃ | O32: JK-HEATER | P32: 1 | R32: 220 | S32: 61.6 | T32: 0.28 | U32: 0.5
C33: U2-CH11 | D33: AV52 | E33: H211 | F33: TC211 | G33: 120℃ | H33: 100℃ | I33: 140℃ | J33: 60℃ | K33: 40℃ | L33: 140℃ | M33: 120℃ | O33: JK-HEATER | P33: 1 | R33: 220 | S33: 61.6 | T33: 0.28 | U33: 0.5
C34: U2-CH12 | D34: REC-1-1-1 | E34: H212 | F34: TC212 | G34: 40℃ | H34: 30℃ | I34: 60℃ | J34: 40℃ | K34: 30℃ | L34: 60℃ | M34: 60℃ | N34: 539-2076-000 | O34: 20×1400mm | P34: 1 | R34: 220 | S34: =1.4*150 -> 210 | T34: =S34/R34 -> 0.9545454545 | U34: 1
C35: U2-CH13
C36: U2-CH14
C37: U2-CH15
C38: U2-CH16
A39: MINI8-3 | B39: HTR1 | C39: U3-CH1 | D39: REC-1-3 | E39: H301 | F39: TC301 | G39: 150℃ | H39: 130℃ | I39: 170℃ | J39: 60℃ | K39: 40℃ | L39: 140℃ | M39: 120℃ | N39: 539-2067-000 | O39: 20×1300mm | P39: 1 | R39: 220 | S39: =1.3*150 -> 195 | T39: =S39/R39 -> 0.8863636364 | U39: 1
C40: U3-CH2 | D40: REC-4-3 | E40: H302 | F40: TC302 | G40: 150℃ | H40: 130℃ | I40: 170℃ | J40: 60℃ | K40: 40℃ | L40: 140℃ | M40: 120℃ | N40: 539-2068-000 | O40: 20×1400mm | P40: 1 | R40: 220 | S40: 210 | T40: =S40/R40 -> 0.9545454545 | U40: 1
C41: U3-CH3 | D41: REC-1-4 | E41: H303 | F41: TC303 | G41: 150℃ | H41: 130℃ | I41: 170℃ | J41: 60℃ | K41: 40℃ | L41: 140℃ | M41: 120℃ | N41: 539-2086-000 | O41: 20×1400mm | P41: 1 | R41: 220 | S41: 210 | T41: =S41/R41 -> 0.9545454545 | U41: 1
C42: U3-CH4 | D42: REC-4-4 | E42: H304 | F42: TC304 | G42: 150℃ | H42: 130℃ | I42: 170℃ | J42: 60℃ | K42: 40℃ | L42: 140℃ | M42: 120℃ | N42: 539-2092-000 | O42: 20×1100mm | P42: 1 | R42: 220 | S42: =1.1*150 -> 165 | T42: 0.75 | U42: 1
C43: U3-CH5 | D43: N2 OUT-1-1 | E43: H305 | F43: TC305 | G43: 150℃ | H43: 130℃ | I43: 170℃ | J43: 60℃ | K43: 40℃ | L43: 140℃ | M43: 120℃ | N43: 539-2072-000 | O43: 20×1600mm | P43: 1 | R43: 220 | S43: =150*1.6 -> 240 | T43: 1.090909091 | U43: 2
C44: U3-CH6 | D44: N2 OUT-1-2 | E44: H306 | F44: TC306 | G44: 150℃ | H44: 130℃ | I44: 170℃ | J44: 60℃ | K44: 40℃ | L44: 140℃ | M44: 120℃ | N44: 539-2091-000 | O44: 20×750mm | P44: 1 | R44: 220 | S44: =0.75*150 -> 112.5 | T44: 0.5113636364 | U44: 1
C45: U3-CH7 | D45: REC-2-1 | E45: H307 | F45: TC307 | G45: 180℃ | H45: 160℃ | I45: 200℃ | J45: 60℃ | K45: 40℃ | L45: 200℃ | M45: 120℃ | N45: 539-2070-000 | O45: 20×1200mm | P45: 1 | R45: 220 | S45: =1.2*150 -> 180 | T45: 0.8181818182 | U45: 1
C46: U3-CH8 | D46: REC-2-2 | E46: H308 | F46: TC308 | G46: 180℃ | H46: 160℃ | I46: 200℃ | J46: 60℃ | K46: 40℃ | L46: 200℃ | M46: 120℃ | N46: 539-2085-000 | O46: 20×500mm | P46: 1 | R46: 220 | S46: =0.5*150 -> 75 | T46: 0.3409090909 | U46: 0.5
C47: U3-CH9 | D47: REC-2-2-1 | E47: H309 | F47: TC309 | G47: 180℃ | H47: 160℃ | I47: 200℃ | J47: 60℃ | K47: 40℃ | L47: 200℃ | M47: 120℃ | N47: 539-2112-000 | O47: 20×400mm | P47: 1 | R47: 220 | S47: =0.4*150 -> 60 | T47: 0.2727272727 | U47: 0.5
C48: U3-CH10 | D48: REC-3-1 | E48: H310 | F48: TC310 | G48: 180℃ | H48: 160℃ | I48: 200℃ | J48: 60℃ | K48: 40℃ | L48: 200℃ | M48: 120℃ | N48: 539-2071-000 | O48: 20×1300mm | P48: 1 | R48: 220 | S48: =1.3*150 -> 195 | T48: 0.8863636364 | U48: 1
C49: U3-CH11 | D49: REC-3-2 | E49: H311 | F49: TC311 | G49: 180℃ | H49: 160℃ | I49: 200℃ | J49: 60℃ | K49: 40℃ | L49: 200℃ | M49: 120℃ | N49: 539-2093-000 | O49: 20×950mm | P49: 1 | R49: 220 | S49: =0.95*150 -> 142.5 | T49: 0.6477272727 | U49: 1
C50: U3-CH12 | D50: REC-3-2-1 | E50: H312 | F50: TC312 | G50: 180℃ | H50: 160℃ | I50: 200℃ | J50: 60℃ | K50: 40℃ | L50: 200℃ | M50: 120℃ | N50: 539-2112-000 | O50: 20×400mm | P50: 1 | R50: 220 | S50: =0.4*150 -> 60 | T50: 0.2727272727 | U50: 0.5
C51: U3-CH13 | D51: SEAL CAP | E51: H313 | F51: TC313 | G51: 150℃ | H51: 130℃ | I51: 250℃ | J51: 100℃ | K51: 80℃ | L51: 250℃ | M51: 200℃ | P51: 1 | R51: 220 | S51: 700 | T51: 3.181818182 | U51: 4
C52: U3-CH14 | D52: R AXIS | F52: TC314 | G52: 80℃ | H52: 30℃ | I52: 110℃ | J52: 30℃ | K52: 30℃ | L52: 110℃ | M52: 70℃ | P52: 1 | R52: 无加热 | S52: TC监测
C53: U3-CH15
C54: U3-CH16
A55: MINI8-4 | B55: HTR2 | C55: U4-CH1 | D55: APC RING(CKD VALVE) | E55: H401 | F55: TC401 | G55: 190℃ | H55: 170℃ | I55: 200℃ | J55: 100℃ | K55: 80℃ | L55: 200℃ | M55: 120℃ | O55: SELF-HEATING | P55: 1 | R55: 100 | S55: 85 | T55: =S55/R55 -> 0.85 | U55: 1
C56: U4-CH2 | D56: APC OUT(CKD VALVE) | E56: H402 | F56: TC402 | G56: 190℃ | H56: 170℃ | I56: 200℃ | J56: 100℃ | K56: 80℃ | L56: 200℃ | M56: 120℃ | O56: SELF-HEATING | P56: 1 | R56: 100 | S56: 315 | T56: 3.15 | U56: 4
C57: U4-CH3 | D57: INLET HEATER-1 | E57: H403 | F57: TC403 | G57: 150℃ | H57: 130℃ | I57: 300℃ | J57: 0℃ | K57: 0℃ | L57: 300℃ | M57: 180℃ | P57: 1 | Q57: 串联 | R57: 100 | S57: 455 | T57: 4.55 | U57: 5 | V57: 4个串联
C58: U4-CH4 | D58: INLET HEATER-2 | E58: H404 | F58: TC404 | G58: 150℃ | H58: 130℃ | I58: 300℃ | J58: 0℃ | K58: 0℃ | L58: 300℃ | M58: 180℃ | P58: 1 | Q58: 串联 | R58: 100 | S58: 470 | T58: 4.7 | U58: 5 | V58: 2个串联
C59: U4-CH5 | D59: INLET PORT HEATER-1 | E59: H405-1,2,3 | F59: TC405 | G59: 150℃ | H59: 130℃ | I59: 300℃ | J59: 0℃ | K59: 0℃ | L59: 300℃ | M59: 180℃ | P59: 1 | Q59: 串联 | R59: 100 | S59: 130 | T59: 1.3 | U59: 2 | V59: 3个串联
C60: U4-CH6 | D60: INLET PORT HEATER-2 | E60: H406-1,2,3 | F60: TC406 | G60: 150℃ | H60: 130℃ | I60: 300℃ | J60: 0℃ | K60: 0℃ | L60: 300℃ | M60: 180℃ | P60: 1 | Q60: 串联 | R60: 100 | S60: 108 | T60: 1.08 | U60: 2 | V60: 3个串联
C61: U4-CH7 | D61: TUBE PORT | E61: H407 | F61: TC407 | G61: 180℃ | H61: 160℃ | I61: 230℃ | J61: 0℃ | K61: 0℃ | L61: 230℃ | M61: 120℃ | P61: 1 | R61: 220 | S61: 30 | T61: 0.1363636364 | U61: 0.25
C62: U4-CH8 | D62: JACKET HEATER-1 | E62: H408 | F62: TC408 | G62: 180℃ | H62: 160℃ | I62: 200℃ | J62: 0℃ | K62: 0℃ | L62: 200℃ | M62: 120℃ | O62: JK-HEATER | P62: 1 | R62: 220 | S62: 475 | T62: 2.159090909 | U62: 3.15
C63: U4-CH9 | D63: JACKET HEATER-2 | E63: H409 | F63: TC409 | G63: 180℃ | H63: 160℃ | I63: 210℃ | J63: 0℃ | K63: 0℃ | L63: 210℃ | M63: 120℃ | O63: JK-HEATER | P63: 1 | R63: 220 | S63: 115 | T63: 0.5227272727 | U63: 1
C64: U4-CH10 | D64: JACKET HEATER-3 | E64: H410 | F64: TC410 | G64: 180℃ | H64: 160℃ | I64: 200℃ | J64: 0℃ | K64: 0℃ | L64: 200℃ | M64: 120℃ | O64: JK-HEATER | P64: 1 | R64: 220 | S64: 471 | T64: 2.140909091 | U64: 3.15
C65: U4-CH11 | D65: JACKET HEATER-4 | E65: H411 | F65: TC411 | G65: 180℃ | H65: 160℃ | I65: 200℃ | J65: 0℃ | K65: 0℃ | L65: 200℃ | M65: 120℃ | O65: JK-HEATER | P65: 1 | R65: 220 | S65: 494 | T65: 2.245454545 | U65: 3.15
C66: U4-CH12 | D66: JACKET HEATER-5 | E66: H412 | F66: TC412 | G66: 180℃ | H66: 160℃ | I66: 200℃ | J66: 0℃ | K66: 0℃ | L66: 200℃ | M66: 120℃ | O66: JK-HEATER | P66: 1 | R66: 220 | S66: 50 | T66: 0.2272727273 | U66: 0.25
C67: U4-CH13 | D67: JACKET HEATER-6 | E67: H413 | F67: TC413 | G67: 180℃ | H67: 160℃ | I67: 200℃ | J67: 0℃ | K67: 0℃ | L67: 200℃ | M67: 120℃ | O67: JK-HEATER | P67: 1 | R67: 220 | S67: 206 | T67: =S67/R67 -> 0.9363636364 | U67: 1
C68: U4-CH14 | D68: JACKET HEATER-7 | E68: H414 | F68: TC414 | G68: 180℃ | H68: 160℃ | I68: 200℃ | J68: 0℃ | K68: 0℃ | L68: 200℃ | M68: 120℃ | O68: JK-HEATER | P68: 1 | R68: 220 | S68: 38 | T68: 0.1727272727 | U68: 0.25
C69: U4-CH15
C70: U4-CH16
A71: MINI8-5 | B71: 炉子
A72: MINI8-6 | B72: HTR2 | C72: U6-CH1 | D72: JACKET HEATER-8 | E72: H601 | F72: TC601 | G72: 180℃ | H72: 160℃ | I72: 200℃ | J72: 0℃ | K72: 0℃ | L72: 200℃ | M72: 120℃ | O72: JK-HEATER | P72: 1 | R72: 220 | S72: 50 | T72: 0.2272727273 | U72: 0.25
C73: U6-CH2 | D73: JACKET HEATER-9 | E73: H602 | F73: TC602 | G73: 180℃ | H73: 160℃ | I73: 200℃ | J73: 0℃ | K73: 0℃ | L73: 200℃ | M73: 120℃ | O73: JK-HEATER | P73: 1 | R73: 220 | S73: 37 | T73: 0.1681818182 | U73: 0.25
C74: U6-CH3 | D74: JACKET HEATER-10 | E74: H603 | F74: TC603 | G74: 180℃ | H74: 160℃ | I74: 200℃ | J74: 0℃ | K74: 0℃ | L74: 200℃ | M74: 120℃ | O74: JK-HEATER | P74: 1 | R74: 220 | S74: 42 | T74: 0.1909090909 | U74: 0.25
C75: U6-CH4 | D75: JACKET HEATER-11 | E75: H604 | F75: TC604 | G75: 180℃ | H75: 160℃ | I75: 200℃ | J75: 0℃ | K75: 0℃ | L75: 200℃ | M75: 120℃ | O75: JK-HEATER | P75: 1 | R75: 220 | S75: 55 | T75: =S75/R75 -> 0.25 | U75: 0.5
C76: U6-CH5 | D76: JACKET HEATER-12 | E76: H605 | F76: TC605 | G76: 180℃ | H76: 160℃ | I76: 200℃ | J76: 0℃ | K76: 0℃ | L76: 200℃ | M76: 120℃ | O76: JK-HEATER | P76: 1 | R76: 220 | S76: 82 | T76: 0.3727272727 | U76: 0.5
C77: U6-CH6 | D77: JACKET HEATER-13 | E77: H606 | F77: TC606 | G77: 180℃ | H77: 160℃ | I77: 200℃ | J77: 0℃ | K77: 0℃ | L77: 200℃ | M77: 120℃ | O77: JK-HEATER | P77: 1 | R77: 220 | S77: 88 | T77: 0.4 | U77: 0.5
C78: U6-CH7 | D78: JACKET HEATER-14 | E78: H607 | F78: TC607 | G78: 180℃ | H78: 160℃ | I78: 200℃ | J78: 0℃ | K78: 0℃ | L78: 200℃ | M78: 120℃ | O78: JK-HEATER | P78: 1 | R78: 220 | S78: 107.8 | T78: 0.49 | U78: 0.5
C79: U6-CH8 | D79: JACKET HEATER-15 | E79: H608 | F79: TC608 | G79: 180℃ | H79: 160℃ | I79: 200℃ | J79: 0℃ | K79: 0℃ | L79: 200℃ | M79: 120℃ | O79: JK-HEATER | P79: 1 | R79: 220 | S79: 93 | T79: 0.4227272727 | U79: 0.5
C80: U6-CH9 | D80: JACKET HEATER-16 | E80: H609 | F80: TC609 | G80: 180℃ | H80: 160℃ | I80: 200℃ | J80: 0℃ | K80: 0℃ | L80: 200℃ | M80: 120℃ | O80: JK-HEATER | P80: 1 | R80: 220 | S80: 93 | T80: 0.4227272727 | U80: 0.5
C81: U6-CH10 | D81: JACKET HEATER-17 | E81: H610 | F81: TC610 | G81: 180℃ | H81: 160℃ | I81: 200℃ | J81: 0℃ | K81: 0℃ | L81: 200℃ | M81: 120℃ | O81: JK-HEATER | P81: 1 | R81: 220 | S81: 93 | T81: 0.4227272727 | U81: 0.5
C82: U6-CH11 | D82: JACKET HEATER-18 | E82: H611 | F82: TC611 | G82: 180℃ | H82: 160℃ | I82: 200℃ | J82: 0℃ | K82: 0℃ | L82: 200℃ | M82: 120℃ | O82: JK-HEATER | P82: 1 | R82: 220 | S82: 100 | T82: =S82/R82 -> 0.4545454545 | U82: 0.5
C83: U6-CH12 | D83: JACKET HEATER-19 | E83: H612 | F83: TC612 | G83: 180℃ | H83: 160℃ | I83: 200℃ | J83: 0℃ | K83: 0℃ | L83: 200℃ | M83: 120℃ | O83: JK-HEATER | P83: 1 | R83: 220 | S83: 50 | T83: 0.2272727273 | U83: 0.25
C84: U6-CH13 | D84: JACKET HEATER-20 | E84: H613 | F84: TC613 | G84: 180℃ | H84: 160℃ | I84: 200℃ | J84: 0℃ | K84: 0℃ | L84: 200℃ | M84: 120℃ | O84: JK-HEATER | P84: 1 | R84: 220 | S84: 64 | T84: 0.2909090909 | U84: 0.5
C85: U6-CH14 | D85: EXHAUST‑2 | E85: H614 | F85: TC614 | G85: 180℃ | H85: 160℃ | I85: 200℃ | J85: 0℃ | K85: 0℃ | L85: 200℃ | M85: 120℃ | N85: 539-2022-000 | O85: 20×1600mm | P85: 1 | R85: 220 | S85: =1.6*150 -> 240 | T85: 1.090909091 | U85: 2
C86: U6-CH15
C87: U6-CH16
A89: 修改记录： | C89: 3.31 | D89: 电流电阻丝数据
C90: 4.1 | D90: 1.MINI8-4点位变动
D91: 2.原MINI8-5改为炉子、新增MINI8-6为原MINI8-5
D92: 3.功率估值（仿照TIN Pro(管道)+ELK（铝块））

Sheet Sheet1
A1: 功率密度ρ | D1: PN | E1: 宽度B | F1: 加热带长度L | G1: 引线长度l | H1: 供电电压V | I1: 每米功率 | J1: 数量 | M1: 米功率 | N1: 电阻 | O1: 数量 | P1: 功率
A2: W/cm2 | E2: mm | F2: mm | G2: mm | H2: V | I2: W/m | J2: n | M2: W/m | N2: Ω | O2: n | P2: W
A3: 0.5 | D3: 1 | E3: 20 | F3: 400 | G3: 1500 | H3: 110 | I3: 75 | M3: =ROUND(P3/(300-50)*1000,0) -> 104 | N3: =ROUND($H$3^2/P3,0) -> 465 | P3: =ROUND((F3-50)*9.52*3.14/100*$A$3/2,0) -> 26
D4: 2 | F4: 500 | M4: =ROUND(P4/(500-50)*1000,0) -> 76 | N4: =ROUND($H$3^2/P4,0) -> 356 | P4: =ROUND((F4-50)*9.52*3.14/100*$A$3/2,0) -> 34
D5: 3 | F5: 750 | M5: =ROUND(P5/(600-50)*1000,0) -> 95 | N5: =ROUND($H$3^2/P5,0) -> 233 | P5: =ROUND((F5-50)*9.52*3.14/100*$A$3/2,0) -> 52
D6: 4 | F6: 900 | M6: =ROUND(P6/(750-50)*1000,0) -> 91 | N6: =ROUND($H$3^2/P6,0) -> 189 | P6: =ROUND((F6-50)*9.52*3.14/100*$A$3/2,0) -> 64
D7: 5 | F7: 950 | M7: =ROUND(P7/(950-50)*1000,0) -> 74 | N7: =ROUND($H$3^2/P7,0) -> 181 | P7: =ROUND((F7-50)*9.52*3.14/100*$A$3/2,0) -> 67
D8: 6 | F8: 1100 | M8: =ROUND(P8/(1100-50)*1000,0) -> 74 | N8: =ROUND($H$3^2/P8,0) -> 155 | P8: =ROUND((F8-50)*9.52*3.14/100*$A$3/2,0) -> 78
D9: 7 | F9: 1200 | M9: =ROUND(P9/(1300-50)*1000,0) -> 69 | N9: =ROUND($H$3^2/P9,0) -> 141 | P9: =ROUND((F9-50)*9.52*3.14/100*$A$3/2,0) -> 86
D10: 8 | F10: 1300 | M10: =ROUND(P10/(1600-50)*1000,0) -> 60 | N10: =ROUND($H$3^2/P10,0) -> 130 | P10: =ROUND((F10-50)*9.52*3.14/100*$A$3/2,0) -> 93
D11: 9 | F11: 1400 | M11: =ROUND(P11/(2000-50)*1000,0) -> 52 | N11: =ROUND($H$3^2/P11,0) -> 120 | P11: =ROUND((F11-50)*9.52*3.14/100*$A$3/2,0) -> 101
D12: 10 | F12: 1600 | M12: =ROUND(P12/(2000-50)*1000,0) -> 59 | N12: =ROUND($H$3^2/P12,0) -> 104 | P12: =ROUND((F12-50)*9.52*3.14/100*$A$3/2,0) -> 116
D13: 11 | F13: 2000 | M13: =ROUND(P13/(2000-50)*1000,0) -> 75 | N13: =ROUND($H$3^2/P13,0) -> 83 | P13: =ROUND((F13-50)*9.52*3.14/100*$A$3/2,0) -> 146
D14: 合计
D15: 示意图
